{"text_format":"3","workbook":"xlsx","n_sheets":4,"sheets":["Zusammenfassung","Guthaben","Verbindlichkeiten","Kategorien"],"not_rendered":{"defined_names":10},"read":"whole","date_system":"1900"}

{"sheet":"Zusammenfassung","index":0,"n_rows":12,"n_cols":4,"rows_kept":12}
[null,"Bilanzaufstellung"]
[null,null,{"$f":"\"GS-\"&YEAR(TODAY())-1","v":"GS-2016"},{"$f":"\"GS-\"&YEAR(TODAY())","v":"GS-2017"}]
[null,"Art des Guthabens","Vorjahr","Aktuelles Jahr"]
[null,"Umlaufvermögen",{"$f":"SUMIFS(Guthaben[Vorjahr],Guthaben[Art des Guthabens],Dashboard[[#This Row],[Art des Guthabens]])+SUMIFS(Verbindlichkeiten[Vorjahr],Verbindlichkeiten[Art der Verbindlichkeit],Dashboard[[#This Row],[Art des Guthabens]])","v":600},{"$f":"SUMIFS(Guthaben[Aktuelles Jahr],Guthaben[Art des Guthabens],Dashboard[[#This Row],[Art des Guthabens]])+SUMIFS(Verbindlichkeiten[Aktuelles Jahr],Verbindlichkeiten[Art der Verbindlichkeit],Dashboard[[#This Row],[Art des Guthabens]])","v":600}]
[null,"Anlagevermögen",{"$f":"SUMIFS(Guthaben[Vorjahr],Guthaben[Art des Guthabens],Dashboard[[#This Row],[Art des Guthabens]])+SUMIFS(Verbindlichkeiten[Vorjahr],Verbindlichkeiten[Art der Verbindlichkeit],Dashboard[[#This Row],[Art des Guthabens]])","v":{"v":-100,"d":"-100 "}},{"$f":"SUMIFS(Guthaben[Aktuelles Jahr],Guthaben[Art des Guthabens],Dashboard[[#This Row],[Art des Guthabens]])+SUMIFS(Verbindlichkeiten[Aktuelles Jahr],Verbindlichkeiten[Art der Verbindlichkeit],Dashboard[[#This Row],[Art des Guthabens]])","v":{"v":-85,"d":"-85 "}}]
[null,"Sonstiges Guthaben",{"$f":"SUMIFS(Guthaben[Vorjahr],Guthaben[Art des Guthabens],Dashboard[[#This Row],[Art des Guthabens]])+SUMIFS(Verbindlichkeiten[Vorjahr],Verbindlichkeiten[Art der Verbindlichkeit],Dashboard[[#This Row],[Art des Guthabens]])","v":0},{"$f":"SUMIFS(Guthaben[Aktuelles Jahr],Guthaben[Art des Guthabens],Dashboard[[#This Row],[Art des Guthabens]])+SUMIFS(Verbindlichkeiten[Aktuelles Jahr],Verbindlichkeiten[Art der Verbindlichkeit],Dashboard[[#This Row],[Art des Guthabens]])","v":0}]
[null,"Kurzfristige Verbindlichkeiten",{"$f":"SUMIFS(Guthaben[Vorjahr],Guthaben[Art des Guthabens],Dashboard[[#This Row],[Art des Guthabens]])+SUMIFS(Verbindlichkeiten[Vorjahr],Verbindlichkeiten[Art der Verbindlichkeit],Dashboard[[#This Row],[Art des Guthabens]])","v":500},{"$f":"SUMIFS(Guthaben[Aktuelles Jahr],Guthaben[Art des Guthabens],Dashboard[[#This Row],[Art des Guthabens]])+SUMIFS(Verbindlichkeiten[Aktuelles Jahr],Verbindlichkeiten[Art der Verbindlichkeit],Dashboard[[#This Row],[Art des Guthabens]])","v":350}]
[null,"Langfristige Verbindlichkeiten",{"$f":"SUMIFS(Guthaben[Vorjahr],Guthaben[Art des Guthabens],Dashboard[[#This Row],[Art des Guthabens]])+SUMIFS(Verbindlichkeiten[Vorjahr],Verbindlichkeiten[Art der Verbindlichkeit],Dashboard[[#This Row],[Art des Guthabens]])","v":0},{"$f":"SUMIFS(Guthaben[Aktuelles Jahr],Guthaben[Art des Guthabens],Dashboard[[#This Row],[Art des Guthabens]])+SUMIFS(Verbindlichkeiten[Aktuelles Jahr],Verbindlichkeiten[Art der Verbindlichkeit],Dashboard[[#This Row],[Art des Guthabens]])","v":0}]
[null,"Eigenkapital",{"$f":"SUMIFS(Guthaben[Vorjahr],Guthaben[Art des Guthabens],Dashboard[[#This Row],[Art des Guthabens]])+SUMIFS(Verbindlichkeiten[Vorjahr],Verbindlichkeiten[Art der Verbindlichkeit],Dashboard[[#This Row],[Art des Guthabens]])","v":0},{"$f":"SUMIFS(Guthaben[Aktuelles Jahr],Guthaben[Art des Guthabens],Dashboard[[#This Row],[Art des Guthabens]])+SUMIFS(Verbindlichkeiten[Aktuelles Jahr],Verbindlichkeiten[Art der Verbindlichkeit],Dashboard[[#This Row],[Art des Guthabens]])","v":350}]
[null,"Guthaben gesamt",{"$f":"Guthaben[[#Totals],[Vorjahr]]","v":500},{"$f":"Guthaben[[#Totals],[Aktuelles Jahr]]","v":515}]
[null,"Verbindlichkeiten gesamt und Eigenkapital",{"$f":"Verbindlichkeiten[[#Totals],[Vorjahr]]","v":500},{"$f":"Verbindlichkeiten[[#Totals],[Aktuelles Jahr]]","v":700}]
[null,"Saldo",{"$f":"C10-C11","v":0},{"$f":"D10-D11","v":{"v":-185,"d":"-185 "}}]

{"sheet":"Guthaben","index":1,"n_rows":14,"n_cols":5,"rows_kept":14}
[null,"Guthaben"]
[{"$nulls":3},{"$f":"GS_JAHR","v":"GS-2016"},{"$f":"GS_JAHR_2","v":"GS-2017"}]
[null,"Art des Guthabens","Beschreibung","Vorjahr","Aktuelles Jahr"]
[null,"Umlaufvermögen","Bargeld",600,600]
[null,"Umlaufvermögen","Investitionen"]
[null,"Umlaufvermögen","Lagerbestände"]
[null,"Umlaufvermögen","Forderungen"]
[null,"Umlaufvermögen","Rechnungsabgrenzungsposten"]
[null,"Anlagevermögen","Sachanlagen"]
[null,"Anlagevermögen","Mietereinbauten"]
[null,"Anlagevermögen","Beteiligungen und sonstige Finanzanlagen"]
[null,"Anlagevermögen","Abzüglich kumulierter Abschreibungen (negativer Wert)",{"v":-100,"d":"-100 "},{"v":-85,"d":"-85 "}]
[null,"Sonstiges Guthaben","Spenden"]
[null,"Guthaben gesamt",null,{"$f":"SUBTOTAL(109,Guthaben[Vorjahr])","v":500},{"$f":"SUBTOTAL(109,Guthaben[Aktuelles Jahr])","v":515}]

{"sheet":"Verbindlichkeiten","index":2,"n_rows":12,"n_cols":5,"rows_kept":12}
[null,"Verbindlichkeiten"]
[{"$nulls":3},{"$f":"GS_JAHR","v":"GS-2016"},{"$f":"GS_JAHR_2","v":"GS-2017"}]
[null,"Art der Verbindlichkeit","Beschreibung","Vorjahr","Aktuelles Jahr"]
[null,"Kurzfristige Verbindlichkeiten","Schuldposten",null,350]
[null,"Kurzfristige Verbindlichkeiten","Lohnverbindlichkeiten"]
[null,"Kurzfristige Verbindlichkeiten","Rückstellungen für Verpflichtungen",500]
[null,"Kurzfristige Verbindlichkeiten","Verbindlichkeiten aus Ertragssteuern"]
[null,"Kurzfristige Verbindlichkeiten","Unverdiente Erträge"]
[null,"Langfristige Verbindlichkeiten","Hypothekenschulden"]
[null,"Eigenkapital","Investitionskapital",null,350]
[null,"Eigenkapital","Gewinnvortrag aus früheren Jahren"]
[null,"Verbindlichkeiten gesamt und Eigenkapital",null,{"$f":"SUBTOTAL(109,Verbindlichkeiten[Vorjahr])","v":500},{"$f":"SUBTOTAL(109,Verbindlichkeiten[Aktuelles Jahr])","v":700}]

{"sheet":"Kategorien","index":3,"n_rows":9,"n_cols":2,"rows_kept":9}
[null,"Kategorien"]
[]
[null,"Kategorien"]
[null,"Umlaufvermögen"]
[null,"Anlagevermögen"]
[null,"Sonstiges Guthaben"]
[null,"Kurzfristige Verbindlichkeiten"]
[null,"Langfristige Verbindlichkeiten"]
[null,"Eigenkapital"]